bitfinex/quotes_SOLUSD_20240816
["timestamp","ask_amount","ask_price","bid_price","bid_amount"]
[1723781860327,7.0354,142.14,142.09,24.6313]
[1723781862605,1.88462127,142.13,142.06,17.5977]
[1723781862811,7.0368,142.11,142.06,24.6368]
[1723781862990,7.0368,142.11,142.06,37.5977]
[1723781863199,7.0363,142.12,142.07,7.0387]
[1723781864832,7.0368,142.11,142.07,7.0387]
[1723781867324,7.0361,142.13,142.08,52.16369]
[1723781868035,7.0354,142.14,142.1,7.0371]
[1723781868227,7.0358,142.13,142.09,7.0376]
[1723781868543,7.0358,142.13,142.09,27.0376]
[1723781868834,7.32048627,142.15,142.09,20.0]
[1723781868998,7.32048627,142.15,142.1,15.0183]
[1723781870050,7.0354,142.14,142.1,22.0554]
[1723781875937,7.036,142.13,142.1,15.0183]
[1723781876103,7.0364,142.12,142.1,15.0183]
[1723781876437,7.0364,142.12,142.08,24.6331]
[1723781877462,7.0379,142.09,142.06,16.0207]
[1723781880309,7.0379,142.09,142.03,20.0]
[1723781880310,7.0384,142.08,142.03,23.3432]
[1723781880532,26.67,142.09,142.03,23.3432]
[1723781880707,26.67,142.07,142.03,16.3028]
[1723781880920,33.7099,142.05,142.0,7.042]
[1723781881123,33.7099,142.05,141.99,33.9088]
[1723781881914,7.0404,142.04,141.99,33.9088]
[1723781882420,26.67,142.05,142.01,7.0416]
[1723781882839,33.7099,142.05,142.0,7.16759]
[1723781883957,2.01096794,142.08,142.0,7.16759]
[1723781883958,7.0396,142.06,142.01,24.6456]
[1723781884333,26.67,142.07,142.01,24.6456]
[1723781884523,7.32629958,142.08,142.02,20.0]
[1723781884723,7.32629958,142.08,142.0,20.12549]
[1723781884724,7.0381,142.09,142.04,36.5003]
[1723781884969,7.0378,142.09,142.05,7.0397]
[1723781885330,7.0378,142.09,142.04,23.5404]
[1723781885641,26.67,142.07,142.04,16.5003]
[1723781885822,26.67,142.07,142.0,33.3496]
[1723781886153,7.0396,142.06,142.01,52.16709]
[1723781886749,26.67,142.07,142.01,7.0416]
[1723781886750,7.0398,142.05,142.01,7.0416]
[1723781887221,7.0398,142.05,142.0,40.3914]
[1723781888123,33.7098,142.05,142.0,40.3914]
[1723781889051,7.0398,142.05,142.01,7.0416]
[1723781890463,7.0394,142.06,142.01,7.0416]
[1723781891374,33.7088,142.07,142.02,17.6026]
[1723781891581,7.0393,142.06,142.02,24.6437]
[1723781893276,0.12549,142.08,142.02,17.6026]
[1723781893573,0.12549,142.08,142.04,7.0398]
[1723781893775,7.16379,142.08,142.04,7.0398]
[1723781894785,7.16379,142.08,142.03,7.0406]
[1723781894967,7.0389,142.07,142.03,7.0406]
[1723781895349,0.12549,142.08,142.03,7.0406]
[1723781895350,7.16379,142.08,142.03,7.0406]
[1723781896178,7.0383,142.08,142.04,7.0402]
[1723781898755,7.0383,142.08,142.03,7.0406]
[1723781899166,7.0396,142.06,142.02,24.6438]
[1723781901546,7.16439,142.07,142.03,7.0405]
[1723781901745,7.0389,142.07,142.03,7.0405]
[1723781903472,14.36100785,142.1,142.05,16.35]
[1723781903662,7.0373,142.1,142.06,27.0389]
[1723781904465,7.0373,142.1,142.06,7.0389]
[1723781904666,7.0369,142.11,142.06,7.0389]
[1723781904861,40.44597275,142.15,142.06,37.5978]
[1723781905056,7.0358,142.13,142.09,7.0377]
[1723781905701,7.0358,142.13,142.1,0.41172374]
[1723781906075,7.0358,142.13,142.09,7.0377]
[1723781907084,7.0359,142.13,142.09,7.0376]
[1723781907487,7.0365,142.12,142.08,24.6333]
[1723781909302,24.90677232,142.17,142.09,61.3361]
[1723781909303,7.0353,142.14,142.09,61.3361]
[1723781910869,7.0358,142.13,142.09,68.3738]
[1723781911069,7.0358,142.13,142.09,23.3738]
[1723781912684,7.0358,142.13,142.09,16.3361]
[1723781913087,7.0363,142.12,142.09,16.3361]
[1723781913674,7.0359,142.13,142.09,16.3361]
[1723781913989,0.25098,142.14,142.09,16.3361]
[1723781914181,27.16079,142.14,142.1,24.6298]
[1723781915079,27.16079,142.14,142.1,17.5927]
[1723781915315,7.0358,142.13,142.1,17.5927]
[1723781916586,7.0367,142.12,142.09,16.3361]
[1723781916808,46.79549,142.14,142.09,16.3361]
[1723781917211,7.0364,142.12,142.09,16.3361]
[1723781918678,46.79549,142.14,142.09,23.3736]
[1723781920019,7.0359,142.13,142.09,23.3736]
[1723781921119,26.67,142.16,142.09,33.9298]
[1723781921322,7.0351,142.15,142.11,7.0367]
[1723781922336,7.32137232,142.17,142.1,45.25098]
[1723781922337,26.67,142.16,142.1,45.25098]
[1723781922494,20.0,142.15,142.09,16.3361]
[1723781922925,20.0,142.15,142.09,23.3735]
[1723781923125,7.0354,142.14,142.1,7.0371]
[1723781926007,27.035,142.15,142.11,7.0367]
[1723781926324,26.67,142.18,142.12,0.41102402]
[1723781926497,7.0344,142.16,142.12,7.0359]
[1723781926696,7.034,142.17,142.13,0.4108754]
[1723781926924,7.034,142.17,142.13,7.0354]
[1723781927310,7.034,142.17,142.14,15.0719]
[1723781939221,7.0336,142.18,142.14,22.1071]
[1723781939537,7.0337,142.18,142.14,39.6948]
[1723781939750,7.0337,142.18,142.15,0.41022583]
[1723781940240,7.0337,142.18,142.14,39.6948]
[1723781940448,7.0339,142.17,142.14,15.0719]
[1723781941143,7.0333,142.18,142.14,15.0719]
[1723781942126,7.0333,142.18,142.14,22.1068]
[1723781942473,0.12549,142.17,142.14,15.0719]
[1723781942621,7.0339,142.17,142.14,15.0719]
[1723781943027,7.0335,142.18,142.14,39.6942]
[1723781943557,7.0335,142.18,142.14,32.659]
[1723781944355,7.0329,142.19,142.14,32.659]
[1723781944860,7.0329,142.19,142.15,45.12549]
[1723781946151,7.0329,142.19,142.15,52.15999]
[1723781947941,7.0333,142.18,142.14,39.6941]
[1723781948562,26.67,142.2,142.14,15.0719]
[1723781948765,7.034,142.17,142.14,15.0719]
[1723781950451,7.0344,142.16,142.14,15.0719]
[1723781951852,7.034,142.17,142.14,15.0719]
[1723781952349,7.0329,142.19,142.14,15.0719]
[1723781952691,20.0,142.18,142.14,15.0719]
[1723781952881,7.0343,142.16,142.14,15.0719]
[1723781954977,7.0343,142.16,142.12,7.0362]
[1723781954978,7.0354,142.14,142.11,22.1052]
[1723781955197,26.67,142.16,142.11,22.1052]
[1723781955198,7.035,142.15,142.11,22.1052]
[1723781955659,7.0353,142.14,142.11,22.1052]
[1723781957054,0.12549,142.17,142.11,29.1419]
[1723781957255,0.12549,142.17,142.11,22.1052]
[1723781957458,7.0347,142.16,142.12,7.0361]
[1723781958700,7.0347,142.16,142.11,29.1418]
[1723781958996,7.0348,142.15,142.11,29.1418]
[1723781959889,7.0353,142.14,142.11,22.1052]
[1723781960084,0.12549,142.17,142.11,29.1418]
[1723781960268,46.67,142.18,142.12,52.28688]
[1723781960269,7.0346,142.16,142.12,52.28688]
[1723781961288,7.0339,142.17,142.13,7.0354]
[1723781961597,7.0339,142.17,142.13,7.0357]
[1723781963680,46.79549,142.18,142.12,62.5902]
[1723781963891,10.66,142.16,142.12,17.5902]
[1723781964063,7.0348,142.15,142.11,29.1419]
[1723781964265,10.66,142.16,142.12,7.0361]
[1723781964266,7.0346,142.16,142.12,7.0361]
[1723781965574,7.0346,142.16,142.11,39.6967]
[1723781965575,10.66,142.17,142.13,17.5888]
[1723781965888,17.6941,142.17,142.13,17.5888]
[1723781966094,7.0344,142.16,142.13,17.5888]
[1723781968695,7.034,142.17,142.13,17.5888]
[1723781968905,17.694,142.17,142.13,17.5888]
[1723781971993,7.0351,142.15,142.11,29.1418]
[1723781972307,17.6959,142.13,142.11,15.7838]
[1723781972877,10.66,142.13,142.11,15.7838]
[1723781976075,17.6958,142.13,142.11,15.7838]
[1723781977584,7.0354,142.14,142.11,15.7838]
[1723781978389,17.6959,142.13,142.11,15.7838]
[1723781978680,7.0376,142.1,142.08,15.7479]
[1723781979381,10.66,142.09,142.04,15.7479]
[1723781979614,17.6982,142.09,142.04,22.7877]
[1723781980305,7.0383,142.08,142.04,22.7877]
[1723781981413,10.66,142.05,142.04,15.7479]
[1723781982473,17.6997,142.05,142.04,15.7479]
[1723781983397,17.6997,142.05,142.01,15.1079]
[1723781984711,7.0403,142.04,142.01,15.1079]
[1723781984896,17.6999,142.05,142.01,15.1079]
[1723781985287,7.0399,142.05,142.01,15.1079]
[1723781985614,17.6999,142.05,142.01,15.1079]
[1723781986437,7.0394,142.06,142.01,22.1493]
[1723781986647,17.6994,142.06,142.01,22.1493]
[1723781994048,10.66,142.06,142.02,17.6026]
[1723781994223,7.0388,142.07,142.02,17.6026]
[1723781994423,20.0,142.06,142.02,24.6437]
[1723781995846,27.0392,142.06,142.02,24.6437]
[1723781996556,0.12549,142.09,142.03,0.41373834]
[1723781996853,0.12549,142.09,142.04,7.0402]
[1723781996854,17.6984,142.08,142.04,7.0402]
[1723781997048,17.6984,142.08,142.03,7.45433834]
[1723781997250,20.0,142.07,142.03,7.45433834]
[1723781997416,27.0388,142.07,142.03,7.45433834]
[1723781997821,27.0388,142.07,142.03,7.0406]
[1723782001124,7.0393,142.06,142.02,24.6436]
[1723782001355,7.0393,142.06,142.02,24.6438]
[1723782002183,17.6993,142.06,142.02,17.6026]
[1723782003772,17.6993,142.06,142.02,24.6438]
[1723782004638,27.0388,142.07,142.03,7.16609]
[1723782004879,17.6984,142.08,142.03,27.16609]
[1723782005849,17.6984,142.08,142.03,7.16609]
[1723782006247,7.0388,142.07,142.03,7.16609]
[1723782006456,7.0388,142.07,142.03,7.0406]
[1723782006983,17.6984,142.08,142.04,7.0402]
[1723782007855,17.6984,142.08,142.03,7.0406]
[1723782010295,7.35356766,142.11,142.04,82.6]
[1723782010467,7.35356766,142.11,142.07,15.1734]
[1723782010674,10.66,142.13,142.08,0.41217097]
[1723782010891,10.66,142.13,142.07,15.1734]
[1723782011691,7.0366,142.12,142.08,7.0382]
[1723782012768,17.6959,142.13,142.08,7.0382]
[1723782013971,7.0364,142.12,142.08,7.0382]
[1723782014789,7.0359,142.13,142.09,7.44979417]
[1723782015300,7.0359,142.13,142.09,7.0376]
[1723782015503,7.0354,142.14,142.09,7.0376]
[1723782015675,7.0354,142.14,142.1,0.4117805]
[1723782015869,7.0354,142.14,142.1,7.4489805]
[1723782018070,7.0354,142.14,142.1,7.0372]
[1723782018604,7.0354,142.14,142.09,7.0376]
[1723782019009,10.66,142.13,142.09,7.0376]
[1723782019304,17.6958,142.13,142.09,7.0376]
[1723782019608,10.66,142.11,142.07,15.1734]
[1723782020475,10.66,142.11,142.08,7.0379]
[1723782020892,10.66,142.11,142.07,39.8086]
[1723782021296,17.6968,142.11,142.07,39.8086]
[1723782023898,10.66,142.11,142.07,39.8086]
[1723782024108,10.66,142.11,142.08,7.0381]
[1723782030186,7.35290489,142.15,142.1,42.759]
[1723782030393,17.6936,142.18,142.13,17.5891]
[1723782030619,10.66,142.16,142.13,17.5891]
[1723782030912,10.66,142.16,142.13,24.6248]
[1723782031283,7.0366,142.12,142.08,7.0382]
[1723782031515,10.66,142.14,142.08,7.0382]
[1723782031516,10.66,142.11,142.08,7.0382]
[1723782034124,7.0361,142.13,142.08,7.0382]
[1723782035423,7.0364,142.12,142.08,7.0382]
[1723782035802,7.0359,142.13,142.08,7.0382]
[1723782036320,7.0359,142.13,142.09,7.0377]
[1723782037416,26.92098,142.14,142.06,15.992]
[1723782037625,0.12549,142.13,142.1,7.0369]
[1723782037923,26.79549,142.14,142.1,7.0369]
[1723782039119,33.83109,142.14,142.1,7.0369]
[1723782040300,7.0358,142.13,142.09,24.6309]
[1723782041015,33.83089,142.14,142.1,7.0372]
[1723782041333,7.28688,142.13,142.09,24.631]
[1723782041899,7.16139,142.13,142.09,24.631]
[1723782043123,0.12549,142.13,142.1,7.037]
[1723782043339,7.0354,142.14,142.1,7.037]
[1723782043901,7.28608,142.15,142.11,7.0367]
[1723782044111,0.12549,142.15,142.12,7.0361]
[1723782044332,7.0343,142.16,142.12,7.0361]
[1723782047222,7.28488,142.17,142.12,7.0361]
[1723782047829,7.28488,142.17,142.13,7.0357]
[1723782048258,7.28488,142.17,142.12,7.0362]
[1723782048259,7.0343,142.16,142.12,7.0362]
[1723782051955,7.0359,142.13,142.09,7.0377]
[1723782052150,1.75934835,142.12,142.09,7.0377]
[1723782052451,1.75934557,142.11,142.08,17.5952]
[1723782053028,33.83189,142.12,142.08,17.5952]
[1723782055929,17.83189,142.12,142.08,17.5952]
[1723782056225,1.75951953,142.11,142.08,17.5952]
[1723782057235,1.75951953,142.11,142.04,15.1502]
[1723782057236,7.0386,142.08,142.04,15.1502]
[1723782057459,1.75983232,142.07,142.04,22.1903]
[1723782057628,10.79549,142.08,142.05,7.0397]
[1723782057833,0.12549,142.07,142.05,7.0397]
[1723782058159,10.79549,142.08,142.05,7.0397]
[1723782058462,12.55539955,142.08,142.05,7.0397]
[1723782058648,1.75994258,142.07,142.05,7.0397]
[1723782058823,0.12549,142.08,142.05,7.0397]
[1723782059028,10.79549,142.08,142.05,7.0397]
[1723782059229,10.79549,142.08,142.04,24.6404]
[1723782060441,10.79549,142.08,142.05,7.0397]
[1723782062271,17.83379,142.08,142.04,24.6404]
[1723782064851,10.79549,142.08,142.04,24.6404]
[1723782070233,0.12549,142.08,142.05,7.0396]
[1723782070459,0.12549,142.09,142.05,7.0396]
[1723782071753,0.12549,142.09,142.06,7.0392]
[1723782072141,17.7076,142.1,142.06,7.0392]
[1723782073153,10.67,142.1,142.06,7.0392]
[1723782073742,17.7073,142.1,142.06,7.0392]
[1723782076879,7.0373,142.1,142.05,7.0395]
[1723782077048,0.12549,142.09,142.05,7.0395]
[1723782077671,17.7073,142.1,142.06,7.0391]
[1723782078278,0.12549,142.09,142.06,7.0391]
[1723782081688,17.7073,142.1,142.06,7.0391]
[1723782082176,7.0373,142.1,142.06,7.0391]
[1723782082355,17.7073,142.1,142.06,7.0391]
[1723782086563,17.7073,142.1,142.05,7.0395]
[1723782091956,10.67,142.06,142.01,33.3256]
[1723782092259,10.67,142.06,142.03,7.0404]
[1723782098198,49.1888,142.1,142.03,7.0404]
[1723782098199,7.0384,142.08,142.04,7.0402]
[1723782098493,17.1788,142.1,142.03,17.6016]
[1723782098694,20.0,142.09,142.03,17.6016]
[1723782100207,27.0379,142.09,142.05,7.0397]
[1723782104194,17.7083,142.08,142.03,17.6016]
[1723782104381,2.01104719,142.07,142.03,24.642]
[1723782105014,7.28978,142.07,142.03,24.642]
[1723782108614,10.67,142.08,142.03,24.642]
[1723782108615,7.0384,142.08,142.04,7.0402]
[1723782109119,37.7079,142.09,142.05,7.0397]
[1723782109318,17.7079,142.09,142.05,7.0397]
[1723782109497,7.0379,142.09,142.05,7.0397]
[1723782110427,7.35279578,142.14,142.11,7.0364]
[1723782110791,7.0348,142.15,142.11,7.0364]
[1723782111289,10.67,142.17,142.12,7.0362]
[1723782111290,7.0344,142.16,142.12,7.0362]
[1723782111483,17.7039,142.17,142.12,7.0362]
[1723782112614,8.79310469,142.16,142.12,7.0362]
[1723782113480,7.0343,142.16,142.12,7.0362]
[1723782117519,17.7049,142.15,142.11,24.628]
[1723782117712,0.12549,142.14,142.11,24.628]
[1723782120000,7.0358,142.13,142.08,17.5947]
[1723782120351,0.12549,142.14,142.08,17.5947]
[1723782120499,37.82959,142.17,142.1,20.0]
[1723782120831,37.82959,142.17,142.12,7.0361]
[1723782120832,7.0344,142.16,142.12,7.0361]
[1723782122048,7.0344,142.16,142.12,24.6265]
[1723782122620,7.0335,142.18,142.12,17.5904]
[1723782122932,7.0335,142.18,142.14,7.0352]
[1723782123970,32.09953001,142.22,142.14,15.8074]
[1723782123971,14.52033001,142.22,142.14,15.8074]
[1723782124126,13.98948495,142.22,142.15,45.12549]
[1723782125157,14.38198495,142.22,142.17,7.0337]
[1723782125324,34.38198495,142.22,142.17,7.0337]
[1723782125532,20.8417755,142.21,142.17,7.0337]
[1723782128547,27.8735755,142.21,142.17,7.0337]
[1723782130225,27.8735755,142.21,142.16,24.6195]
[1723782132936,7.0324,142.2,142.16,17.5854]
[1723782133264,7.0324,142.2,142.16,24.6196]
[1723782134148,12.55387213,142.19,142.14,15.8074]
[1723782134534,19.58687213,142.19,142.14,22.8423]
[1723782134756,17.82849,142.19,142.14,22.8423]
[1723782135071,17.82849,142.19,142.15,7.0347]
[1723782135446,10.79549,142.19,142.15,7.0347]
[1723782135765,10.67,142.19,142.15,7.0347]
[1723782136068,17.7028,142.19,142.15,7.0347]
[1723782136246,7.0334,142.18,142.14,15.8074]
[1723782136572,7.0334,142.18,142.13,24.6242]
[1723782141277,20.9672655,142.21,142.17,7.0333]
[1723782141278,20.8417755,142.21,142.17,7.0333]
[1723782143383,0.8417755,142.21,142.2,7.0323]
[1723782143681,0.8417755,142.21,142.2,7.69161259]
[1723782144190,0.8417755,142.21,142.2,52.69161259]
[1723782144564,0.8417755,142.21,142.2,72.40877]
[1723782145555,0.8417755,142.21,142.2,72.28328]
[1723782145995,0.8417755,142.21,142.2,52.28328]
[1723782146286,0.8417755,142.21,142.2,52.15779]
[1723782148400,0.8417755,142.21,142.2,52.28328]
[1723782149588,0.8417755,142.21,142.2,62.95328]
[1723782150592,0.8417755,142.21,142.2,63.07877]
[1723782151387,0.8417755,142.21,142.2,62.95328]
[1723782153589,0.8417755,142.21,142.2,52.28328]
[1723782156321,0.8417755,142.21,142.2,52.28328]
[1723782158820,0.8417755,142.21,142.2,52.40877]
[1723782160123,0.8417755,142.21,142.2,52.28328]
[1723782161222,0.8417755,142.21,142.2,52.0323]
[1723782162192,0.8417755,142.21,142.2,7.0323]
[1723782162708,0.8417755,142.21,142.2,7.15779]
[1723782162946,0.8417755,142.21,142.2,37.82779]
[1723782163098,0.8417755,142.21,142.2,82.95328]
[1723782166014,0.8417755,142.21,142.2,83.07877]
[1723782166610,6.4958,142.29,142.24,20.0]
[1723782166816,13.2563,142.32,142.27,7.0287]
[1723782169333,7.0269,142.31,142.27,7.0287]
[1723782170243,13.2564,142.32,142.27,7.0287]
[1723782174005,17.697,142.31,142.27,7.0287]
[1723782176545,10.67,142.29,142.23,17.5763]
[1723782176706,10.67,142.29,142.24,7.03]
[1723782176905,17.82319,142.3,142.26,7.0293]
[1723782177106,17.6977,142.3,142.26,7.0293]
[1723782178328,17.6977,142.3,142.25,24.6038]
[1723782178837,7.0279,142.29,142.25,24.6041]
[1723782179214,17.6975,142.3,142.25,24.6041]
[1723782180516,7.0279,142.29,142.25,24.6041]
[1723782182545,17.6985,142.28,142.25,17.5743]
[1723782185548,0.25098,142.31,142.25,17.5743]
[1723782185549,7.0275,142.3,142.26,7.0292]
[1723782186108,7.028,142.29,142.25,24.604]
[1723782187538,17.698,142.29,142.25,24.604]
[1723782187916,7.028,142.29,142.25,24.604]
[1723782189325,7.0274,142.3,142.25,17.5743]
[1723782189559,17.6974,142.3,142.26,7.0293]
[1723782189751,17.6974,142.3,142.25,24.604]
[1723782190138,7.028,142.29,142.25,24.604]
[1723782190963,7.0302,142.25,142.2,22.9413]
[1723782191266,7.0302,142.25,142.2,15.9093]
[1723782192077,7.0302,142.25,142.21,7.0317]
[1723782192232,17.7002,142.25,142.21,7.0317]
[1723782192928,50.11824775,142.4,142.22,22.2734]
[1723782192929,7.35107362,142.31,142.22,22.2734]
[1723782193277,7.0262,142.33,142.28,7.0282]
[1723782193559,10.67,142.32,142.27,24.6002]
[1723782193947,7.027,142.31,142.26,7.0293]
[1723782194254,17.6965,142.32,142.27,7.0287]
[1723782194631,7.0274,142.3,142.26,17.5723]
[1723782194833,7.028,142.29,142.25,7.0297]
[1723782195034,10.67,142.29,142.23,17.70189]
[1723782195360,17.698,142.29,142.24,7.0303]
[1723782195568,10.67,142.27,142.23,24.6072]
[1723782195733,10.67,142.25,142.21,7.0317]
[1723782195940,7.15489,142.26,142.22,7.0312]
[1723782200580,0.12549,142.26,142.22,7.0312]
[1723782200871,7.0289,142.27,142.22,7.0312]
[1723782202639,7.0289,142.27,142.23,7.0308]
[1723782203173,7.0285,142.28,142.24,7.0301]
[1723782204652,7.028,142.29,142.25,7.0298]
[1723782206182,0.12549,142.28,142.22,17.5777]
[1723782207174,7.0289,142.27,142.23,7.0307]
[1723782208451,7.15399,142.28,142.23,7.0307]
[1723782209948,7.0289,142.27,142.23,7.0307]
[1723782210147,7.0294,142.26,142.22,24.6089]
[1723782210663,7.029,142.27,142.22,24.6089]
[1723782210851,7.0294,142.26,142.22,24.6089]
[1723782211881,7.0317,142.22,142.19,15.6931]
[1723782212166,26.73549,142.23,142.17,7.0336]
[1723782212472,33.6419,142.21,142.17,7.0338]
[1723782213093,33.6419,142.21,142.16,17.5853]
[1723782213094,7.0324,142.2,142.16,17.5853]
[1723782213295,7.0328,142.19,142.16,17.5853]
[1723782213467,7.0328,142.19,142.15,16.3863]
[1723782215603,7.0328,142.19,142.15,23.421]
[1723782219371,7.15799,142.2,142.15,23.421]
[1723782221702,7.032,142.21,142.17,7.0337]
[1723782222773,26.61,142.23,142.16,7.0341]
[1723782222774,7.0324,142.2,142.16,7.0341]
[1723782227914,7.0328,142.19,142.15,41.0072]
[1723782228617,7.0347,142.16,142.12,24.6261]
[1723782228788,7.0347,142.16,142.12,17.5902]
[1723782228789,8.79344269,142.16,142.12,17.5902]
[1723782228982,26.61,142.17,142.1,7.0371]
[1723782228983,28.36886056,142.15,142.1,7.0371]
[1723782229188,35.40376056,142.15,142.1,7.0371]
[1723782229417,33.6449,142.15,142.09,17.5937]
[1723782229591,33.6449,142.15,142.11,7.0367]
[1723782230921,0.12549,142.16,142.13,7.0356]
[1723782231223,7.0342,142.17,142.12,7.0361]
[1723782234126,46.61,142.19,142.13,37.71459]
[1723782234127,20.0,142.19,142.13,37.71459]
[1723782234719,20.0,142.19,142.13,17.71459]
[1723782235108,7.0334,142.18,142.14,7.0351]
[1723782235925,7.0334,142.18,142.13,24.75019]
[1723782236109,7.0341,142.17,142.13,24.6247]
[1723782236298,7.0341,142.17,142.13,17.5891]
[1723782237001,7.0345,142.16,142.12,7.0361]
[1723782237206,7.15999,142.16,142.11,7.0366]
[1723782238115,7.0348,142.15,142.1,24.6296]
[1723782238415,7.0354,142.14,142.1,24.6296]
[1723782238597,33.6449,142.15,142.1,24.6296]
[1723782238794,7.15979,142.16,142.1,17.5924]
[1723782239020,7.0343,142.16,142.1,17.5924]
[1723782239213,46.61,142.19,142.1,17.5924]
[1723782239214,7.0348,142.15,142.11,7.0367]
[1723782242602,7.0344,142.16,142.12,7.0361]
[1723782243698,7.0344,142.16,142.11,7.0366]
[1723782245386,7.0344,142.16,142.12,7.0362]
[1723782246225,7.0329,142.19,142.15,7.0348]
[1723782246989,7.0329,142.19,142.14,0.41034187]
[1723782246990,10.66,142.21,142.14,17.5879]
[1723782247617,20.0,142.2,142.14,17.5879]
[1723782247808,20.0,142.2,142.13,61.45068]
[1723782247809,7.0322,142.21,142.16,17.5854]
[1723782248037,7.0314,142.22,142.17,7.0334]
[1723782248702,7.0314,142.22,142.18,7.0332]
[1723782249325,7.0314,142.22,142.17,7.0336]
[1723782251126,26.63,142.24,142.16,24.6195]
[1723782251127,0.12549,142.23,142.16,24.6195]
[1723782251306,0.12549,142.23,142.13,16.32519]
[1723782251307,33.6624,142.2,142.15,7.0344]
[1723782253232,33.6624,142.2,142.16,7.0341]
[1723782253233,7.0324,142.2,142.16,7.0341]
[1723782253426,7.032,142.21,142.17,7.0337]
[1723782254406,26.63,142.22,142.17,17.5836]
[1723782254610,7.0314,142.22,142.18,7.0332]
[1723782255418,7.0309,142.23,142.18,7.44251986]
[1723782255733,7.0314,142.22,142.18,7.0332]
[1723782257609,7.0314,142.22,142.17,17.5836]
[1723782257610,26.75549,142.22,142.17,17.5836]
[1723782257807,0.12549,142.21,142.14,17.5875]
[1723782258054,7.15749,142.21,142.16,7.0339]
[1723782258443,7.15749,142.21,142.14,17.5875]
[1723782258915,7.15749,142.21,142.17,7.0337]
[1723782261539,7.15749,142.21,142.16,17.5854]
[1723782261540,0.12549,142.21,142.18,7.0329]
[1723782261716,27.031,142.23,142.19,7.0328]
[1723782261919,7.031,142.23,142.19,7.0328]
[1723782263227,7.0305,142.24,142.19,7.0328]
[1723782263421,7.0309,142.23,142.19,7.0328]
[1723782263939,7.0305,142.24,142.19,7.0328]
[1723782264364,7.0299,142.25,142.2,17.5803]
[1723782264954,7.0304,142.24,142.2,24.6125]
[1723782265334,28.3879461,142.23,142.15,15.42]
[1723782265540,33.6621,142.21,142.16,7.0339]
[1723782265835,33.6621,142.21,142.17,7.0338]
[1723782266058,7.0323,142.2,142.16,24.6195]
[1723782270448,17.682,142.21,142.17,7.0337]
[1723782272972,10.65,142.21,142.16,17.5853]
[1723782273334,10.65,142.21,142.18,7.033]
[1723782273652,17.6819,142.21,142.17,7.0336]
[1723782274772,1.75827074,142.2,142.17,7.0336]
[1723782275067,17.6819,142.21,142.17,7.0336]
[1723782275587,10.65,142.19,142.16,17.5853]
[1723782275879,17.6829,142.19,142.16,17.5853]
[1723782276174,10.65,142.19,142.16,17.5853]
[1723782276645,10.65,142.19,142.16,24.6195]
[1723782276848,7.0336,142.18,142.15,15.42]
[1723782277075,17.683,142.19,142.15,22.4547]
[1723782277950,10.65,142.21,142.16,17.5854]
[1723782278152,0.12549,142.2,142.16,17.5854]
[1723782278972,7.0315,142.22,142.16,17.5854]
[1723782279163,7.0315,142.22,142.17,0.12549]
[1723782280068,7.0315,142.22,142.18,7.0332]
[1723782280562,17.681,142.23,142.18,7.0332]
[1723782281960,7.031,142.23,142.18,7.0332]
[1723782282593,33.651,142.23,142.18,7.0332]
[1723782283181,26.62,142.27,142.22,20.0]
[1723782283557,26.62,142.27,142.23,7.43831381]
[1723782284658,33.648,142.29,142.24,7.43772083]